fUSD/lending_fUSD_20240223
["ID","MTS","AMOUNT","RATE_DAILY","PERIOD"]
[315005498,1708726267332,-160.49481865,0.00038444,7]
[315005499,1708726267341,-150.0,0.00038444,7]
[315005500,1708726267350,-1500.0,0.00038455,2]
[315005501,1708726267359,-160.64979293,0.00038465,7]
[315005502,1708726267368,-150.0,0.00038476,7]
[315005503,1708726267377,-500.0,0.00038492,4]
[315005504,1708726267386,-500.0,0.00038492,4]
[315005505,1708726267395,-208.85056503,0.00038492,4]
[315005506,1708726267405,-500.0,0.00038492,4]
[315005507,1708726267414,-500.0,0.00038492,4]
[315005508,1708726267424,-500.0,0.00038492,4]
[315005509,1708726267433,-500.0,0.00038492,4]
[315005510,1708726267442,-527.04900557,0.00038492,4]
[315005511,1708726267452,-500.0,0.00038492,4]
[315005512,1708726267462,-500.0,0.00038492,2]
[315005513,1708726267471,-500.0,0.00038492,4]
[315005514,1708726267482,-3460.20510023,0.00038501,2]
[315005515,1708726267491,-160.64979293,0.00038505,7]
[315005516,1708726267499,-3078.12408553,0.00038526,10]
[315005517,1708726267509,-160.64979293,0.00038545,7]
[315005518,1708726267518,-500.0,0.00038551,4]
[315005519,1708726267527,-500.0,0.00038551,4]
[315005520,1708726267537,-1000.0,0.00038551,7]
[315005521,1708726267546,-500.0,0.00038551,4]
[315005522,1708726267556,-500.0,0.00038551,4]
[315005523,1708726267564,-500.0,0.00038551,4]
[315005524,1708726267574,-500.0,0.00038551,4]
[315005525,1708726267583,-500.0,0.00038551,4]
[315005526,1708726267592,-578.81365705,0.00038551,4]
[315005527,1708726267601,-500.0,0.00038551,4]
[315005528,1708726267610,-500.0,0.00038551,4]
[315005529,1708726267628,-500.0,0.00038551,4]
[315005530,1708726267644,-312.84262784,0.00038551,4]
[315005531,1708726267658,-500.0,0.00038551,4]
[315005532,1708726267671,-500.0,0.00038551,4]
[315005533,1708726267685,-500.0,0.00038551,4]
[315005534,1708726267699,-500.0,0.00038551,4]
[315005535,1708726267714,-500.0,0.00038551,4]
[315005536,1708726267728,-500.0,0.00038551,4]
[315005537,1708726267740,-500.0,0.00038551,4]
[315005538,1708726267753,-500.0,0.00038551,4]
[315005539,1708726267767,-500.0,0.00038551,4]
[315005540,1708726267779,-500.0,0.00038551,4]
[315005541,1708726267793,-500.0,0.00038551,4]
[315005542,1708726267807,-500.0,0.00038551,4]
[315005543,1708726267818,-500.0,0.00038551,4]
[315005544,1708726267834,-500.0,0.00038551,4]
[315005545,1708726267848,-500.0,0.00038551,4]
[315005546,1708726267861,-500.0,0.00038551,4]
[315005547,1708726267873,-500.0,0.00038551,4]
[315005548,1708726267886,-500.0,0.00038551,4]
[315005549,1708726267900,-500.0,0.00038551,4]
[315005550,1708726267915,-500.0,0.00038551,4]
[315005551,1708726267929,-500.0,0.00038551,4]
[315005552,1708726267944,-500.0,0.00038551,4]
[315005553,1708726267955,-500.0,0.00038551,4]
[315005554,1708726267966,-500.0,0.00038551,4]
[315005555,1708726267978,-490.17962223,0.00038551,4]
[315005556,1708726267992,-600.0,0.00038551,4]
[315005557,1708726268004,-150.0,0.00038556,7]
[315005558,1708726268018,-150.0,0.00038571,7]
[315005559,1708726268029,-160.64979293,0.00038586,7]
[315005560,1708726268040,-160.64979293,0.00038626,7]
[315005561,1708726268054,-500.0,0.00038629,4]
[315005562,1708726268066,-500.0,0.00038629,4]
[315005563,1708726268078,-500.0,0.00038629,4]
[315005564,1708726268090,-500.0,0.00038629,4]
[315005565,1708726268106,-500.0,0.00038629,4]
[315005566,1708726268118,-502.03338004,0.00038629,4]
[315005567,1708726268131,-500.0,0.00038629,2]
[315005568,1708726268143,-150.57,0.0003866,2]
[315005569,1708726268154,-359.0,0.00038663,14]
[315005570,1708726268167,-160.64979293,0.00038667,7]
[315005571,1708726268180,-150.0,0.00038667,7]
[315005572,1708726268192,-150.0,0.00038667,7]
[315005573,1708726268205,-150.0,0.00038667,7]
[315005574,1708726268217,-150.0,0.00038667,7]
[315005575,1708726268228,-154.2056316,0.00038685,7]
[315005576,1708726268241,-377.87184372,0.00038688,4]
[315005577,1708726268252,-500.0,0.00038688,4]
[315005578,1708726268266,-500.0,0.00038688,4]
[315005579,1708726268278,-500.0,0.00038688,4]
[315005580,1708726268290,-500.0,0.00038688,4]
[315005581,1708726268302,-500.0,0.00038688,4]
[315005582,1708726268314,-500.0,0.00038688,4]
[315005583,1708726268326,-500.0,0.00038688,4]
[315005584,1708726268338,-500.0,0.00038688,4]
[315005585,1708726268349,-500.0,0.00038688,4]
[315005586,1708726268361,-500.0,0.00038688,4]
[315005587,1708726268372,-500.0,0.00038688,4]
[315005588,1708726268385,-500.0,0.00038688,4]
[315005589,1708726268396,-500.0,0.00038688,4]
[315005590,1708726268408,-394.34896869,0.00038688,4]
[315005591,1708726268420,-500.0,0.00038688,4]
[315005592,1708726268432,-500.0,0.00038688,4]
[315005593,1708726268443,-500.0,0.00038688,4]
[315005594,1708726268454,-500.0,0.00038688,4]
[315005595,1708726268466,-500.0,0.00038688,4]
[315005596,1708726268477,-500.0,0.00038688,4]
[315005597,1708726268490,-500.0,0.00038688,4]
[315005598,1708726268501,-500.0,0.00038688,4]
[315005599,1708726268513,-160.64979293,0.00038707,7]
[315005600,1708726268524,-4773.75547162,0.00038719,2]
[315005601,1708726268537,-153.50007698,0.00038727,7]
[315005602,1708726268549,-2000.0,0.0003874,26]
[315005603,1708726268560,-160.64979293,0.00038747,7]
[315005604,1708726268573,-6892.55022949,0.00038764,2]
[315005605,1708726268584,-500.0,0.00038766,4]
[315005606,1708726268596,-580.74826751,0.00038766,4]
[315005607,1708726268609,-500.0,0.00038766,4]
[315005608,1708726268620,-430.24309089,0.00038766,4]
[315005609,1708726268632,-500.0,0.00038766,4]
[315005610,1708726268643,-500.0,0.00038766,2]
[315005611,1708726268655,-150.0,0.00038778,7]
[315005612,1708726268666,-11769.09848048,0.0003878,12]
[315005613,1708726268677,-160.64979293,0.00038788,7]
[315005614,1708726268689,-154.98329938,0.00038816,7]
[315005615,1708726268700,-500.0,0.00038825,4]
[315005616,1708726268712,-500.0,0.00038825,4]
[315005617,1708726268724,-500.0,0.00038825,4]
[315005618,1708726268736,-500.0,0.00038825,4]
[315005619,1708726268748,-500.0,0.00038825,4]
[315005620,1708726268761,-457.08408768,0.00038825,4]
[315005621,1708726268772,-500.0,0.00038825,4]
[315005622,1708726268783,-500.0,0.00038825,4]
[315005623,1708726268795,-500.0,0.00038825,4]
[315005624,1708726268806,-500.0,0.00038825,4]
[315005625,1708726268818,-500.0,0.00038825,4]
[315005626,1708726268829,-500.0,0.00038825,4]
[315005627,1708726268840,-500.0,0.00038825,4]
[315005628,1708726268852,-500.0,0.00038825,4]
[315005629,1708726268864,-500.0,0.00038825,4]
[315005630,1708726268876,-500.0,0.00038825,4]
[315005631,1708726268887,-500.0,0.00038825,4]
[315005632,1708726268898,-500.0,0.00038825,4]
[315005633,1708726268911,-500.0,0.00038825,4]
[315005634,1708726268923,-157.51738784,0.00038826,7]
[315005635,1708726268935,-160.64979293,0.00038828,7]
[315005636,1708726268947,-1800.0,0.0003884,21]
[315005637,1708726268959,-150.0,0.00038857,7]
[315005638,1708726268971,-150.0,0.00038857,7]
[315005639,1708726268983,-160.64979293,0.00038869,7]
[315005640,1708726268994,-1750.0,0.0003888,22]
[315005641,1708726269006,-151.0,0.00038885,14]
[315005642,1708726269018,-278.87872,0.00038885,14]
[315005643,1708726269029,-155.14487318,0.00038887,7]
[315005644,1708726269041,-150.0,0.00038889,7]
[315005645,1708726269052,-3416.47,0.000389,7]
[315005646,1708726269065,-3868.85,0.000389,7]
[315005647,1708726269100,-156.0,0.000389,7]
[315005648,1708726269112,-500.0,0.00038903,4]
[315005649,1708726269125,-500.0,0.00038903,4]
[315005650,1708726269138,-500.0,0.00038903,4]
[315005651,1708726269151,-500.0,0.00038903,2]
[315005652,1708726269164,-281.743159,0.00038904,14]
[315005653,1708726269178,-160.64979293,0.00038909,7]
[315005654,1708726269191,-150.0,0.00038933,2]
[315005655,1708726269204,-2000.0,0.0003894,27]
[315005656,1708726269217,-160.64979293,0.00038949,7]
[315005657,1708726269230,-500.0,0.00038962,4]
[315005658,1708726269246,-500.0,0.00038962,4]
[315005659,1708726269260,-500.0,0.00038962,4]
[315005660,1708726269273,-500.0,0.00038962,4]
[315005661,1708726269286,-500.0,0.00038962,4]
[315005662,1708726269298,-536.92393329,0.00038962,4]
[315005663,1708726269310,-500.0,0.00038962,4]
[315005664,1708726269320,-500.0,0.00038962,4]
[315005665,1708726269547,-500.0,0.00038962,4]
[315005666,1708726269572,-500.0,0.00038962,4]
[315005667,1708726269581,-500.0,0.00038962,4]
[315005668,1708726269591,-214.7804473,0.00038962,4]
[315005669,1708726269599,-500.0,0.00038962,4]
[315005670,1708726269608,-500.0,0.00038962,4]
[315005671,1708726269617,-509.00420882,0.00038962,4]
[315005672,1708726269626,-500.0,0.00038962,4]
[315005673,1708726269635,-750.0,0.0003897,2]
[315005674,1708726269644,-184.9172368,0.00038988,2]
[315005675,1708726269653,-265.370214,0.00038988,3]
[315005676,1708726269662,-151.0,0.00038988,2]
[315005677,1708726269671,-217.583966,0.00038988,14]
[315005678,1708726269679,-217.583966,0.00038988,14]
[315005679,1708726269689,-151.0,0.00038988,14]
[315005680,1708726269697,-151.0,0.00038988,14]
[315005681,1708726269707,-151.0,0.00038988,14]
[315005682,1708726269717,-151.0,0.00038988,14]
[315005683,1708726269726,-151.0,0.00038988,14]
[315005684,1708726269736,-151.0,0.00038988,14]
[315005685,1708726269745,-90623.96050406,0.00038988,31]
[315005686,1708726269754,-10101.80253037,0.00038988,30]
[315005687,1708726269763,-690675.83979066,0.00038988,10]
[315005688,1708726269773,-818.93830689,0.00038988,10]
[315005689,1708726269781,-2617.79139145,0.00038988,120]
[315005690,1708726269790,-525257.95658622,0.00038988,7]
[315005691,1708726269799,-331.76626239,0.00038988,30]
[315005692,1708726269809,-1500.0,0.00038988,4]
[315005693,1708726269818,-236920.52769662,0.00038988,7]
[315005694,1708726269827,-961.52542139,0.00038988,30]
[315005695,1708726269837,-101918.32226414,0.00038988,30]
[315005696,1708726269846,-563.89340259,0.00038988,120]
[315005697,1708726269856,-212.55030809,0.00038988,30]
[315005698,1708726269866,-1705.744602,0.00038988,30]
[315005699,1708726269876,-5920.0,0.00038988,4]
[315005700,1708726269884,-153.54957341,0.00038988,30]
[315005701,1708726269894,-300.0,0.00038988,34]
[315005702,1708726269903,-160.64979293,0.0003899,7]
[315005703,1708726269912,-19451.37591648,0.0003899,30]
[315005704,1708726269921,-288.130618,0.00038991,30]
[315005705,1708726269930,-1000.0,0.00038999,2]
[315005706,1708726269939,-2700.05,0.00039,7]
[315005707,1708726269949,-200.0,0.00039,12]
[315005708,1708726269958,-150.0,0.00039,7]
[315005709,1708726269967,-150.0,0.00039,7]
[315005710,1708726269977,-150.0,0.00039,7]
[315005711,1708726269989,-1257.51,0.00039,3]
[315005712,1708726269998,-1257.51,0.00039,3]
[315005713,1708726270007,-1257.51,0.00039,3]
[315005714,1708726270017,-1257.51,0.00039,3]
[315005715,1708726270026,-1257.51,0.00039,3]
[315005716,1708726270036,-1257.51,0.00039,3]
[315005717,1708726270045,-1257.51,0.00039,3]
[315005718,1708726270055,-1257.51,0.00039,3]
[315005719,1708726270065,-1257.51,0.00039,3]
[315005720,1708726270075,-1257.51,0.00039,3]
[315005721,1708726270084,-1257.51,0.00039,3]
[315005722,1708726270101,-1257.51,0.00039,3]
[315005723,1708726270111,-1257.51,0.00039,3]
[315005724,1708726270121,-1257.51,0.00039,3]
[315005725,1708726270131,-1257.51,0.00039,3]
[315005726,1708726270142,-1257.51,0.00039,3]
[315005727,1708726270152,-1257.51,0.00039,3]
[315005728,1708726270161,-1257.51,0.00039,3]
[315005729,1708726270172,-1257.51,0.00039,3]
[315005730,1708726270182,-1257.51,0.00039,3]
[315005731,1708726270191,-190.51545935,0.00039001,30]
[315005732,1708726270201,-3112.75981115,0.00039008,30]
[315005733,1708726270210,-3112.75981115,0.00039009,30]
[315005734,1708726270219,-460.11074701,0.00039012,30]
[315005735,1708726270229,-302.0,0.00039015,4]
[315005736,1708726270241,-50400.34385325,0.00039015,30]
[315005737,1708726270250,-50400.34385325,0.00039018,30]
[315005738,1708726270260,-460.11074701,0.00039028,30]
[315005739,1708726270270,-499.99763427,0.00039028,30]
[315005740,1708726270279,-1851.17274352,0.0003903,10]
[315005741,1708726270289,-214.96229188,0.0003903,10]
[315005742,1708726270503,-1339.05044175,0.0003903,10]
[315005743,1708726270513,-789.93087929,0.0003903,10]
[315005744,1708726270522,-427.69894864,0.0003903,10]
[315005745,1708726270532,-5565.24565547,0.0003903,30]
[315005746,1708726270542,-584.90629794,0.0003903,30]
[315005747,1708726270551,-160.64979293,0.0003903,7]
[315005748,1708726270560,-190.51545935,0.0003903,30]
[315005749,1708726270569,-1326.2563842,0.00039034,2]
[315005750,1708726270578,-499.99763427,0.00039038,30]
[315005751,1708726270588,-18364.86426971,0.00039038,30]
[315005752,1708726270600,-32035.47958354,0.00039038,30]
[315005753,1708726270609,-434.98514382,0.0003904,4]
[315005754,1708726270618,-500.0,0.0003904,4]
[315005755,1708726270627,-500.0,0.0003904,2]
[315005756,1708726270636,-150.0,0.00039048,7]
[315005757,1708726270645,-27354.57354677,0.0003905,30]
[315005758,1708726270658,-2383.07843789,0.0003905,30]
[315005759,1708726270707,-555.38,0.00027397,10]
[315005760,1708726270717,-649.87,0.00027671,2]
[315005761,1708726270726,-664.3,0.00027945,2]
[315005762,1708726270735,-664.3,0.00028082,2]
[315005763,1708726270745,-220.69416382,0.00029178,2]
[315005764,1708726270754,-151.0,0.000318,7]
[315005765,1708726270763,-151.0,0.00037289,7]
[315005766,1708726270772,-947.09340667,0.0003905,30]
[315005767,1708726270784,-1010.40409983,0.0003905,30]
[315005768,1708726270803,-664.3,0.00028219,2]
[315005769,1708726270812,-5.41351189,0.0003905,30]
[315005770,1708726270823,-445.82905803,0.0003905,30]
[315005771,1708726271026,-523.4969419,0.00027397,2]
[315005772,1708726271037,-500.0,0.00027397,2]
[315005773,1708726271046,-500.0,0.00027397,2]
[315005774,1708726271056,-553.63101313,0.00028356,2]
[315005775,1708726271067,-110.66898687,0.00028356,2]
[315005776,1708726271076,-664.3,0.00028493,2]
[315005777,1708726271085,-664.3,0.0002863,2]
[315005778,1708726271095,-664.3,0.00028767,2]
[315005779,1708726271107,-664.3,0.00028904,2]
[315005780,1708726271117,-267.850445,0.00038988,14]
[315005781,1708726271127,-18253.95179217,0.0003905,30]
[315005782,1708726271137,-3112.75981115,0.0003905,30]
[315005783,1708726271147,-288.130618,0.00039055,30]
[315005784,1708726271156,-1177.01493328,0.00039055,30]
[315005785,1708726271169,-1529.58282368,0.00039055,30]
[315005786,1708726271350,-156.6753568,0.0002293,2]
[315005787,1708726271360,-150.0,0.00027019,2]
[315005788,1708726271370,-501.44610929,0.00027397,2]
[315005789,1708726271379,-500.0,0.00027397,2]
[315005790,1708726271388,-640.46,0.00027397,2]
[315005791,1708726271397,-500.0,0.00027397,2]
[315005792,1708726271406,-500.0,0.00027397,2]
[315005793,1708726271415,-500.0,0.00027397,2]
[315005794,1708726271424,-664.3,0.00029041,2]
[315005795,1708726271433,-664.3,0.00029178,2]
[315005796,1708726271443,-25.37552499,0.00029315,2]
[315005797,1708726271472,-638.92447501,0.00029315,2]
[315005798,1708726271481,-664.3,0.00029452,2]
[315005799,1708726271492,-664.3,0.00029589,2]
[315005800,1708726271502,-664.3,0.00029726,2]
[315005801,1708726271511,-126.77552499,0.00029863,2]
[315005802,1708726271523,-537.52447501,0.00029863,2]
[315005803,1708726271533,-406.16205419,0.00039055,30]
[315005804,1708726271542,-19451.37591648,0.00039055,30]
[315005805,1708726271551,-190.51545935,0.00039058,30]
[315005806,1708726271561,-70.88709519,0.00039063,30]
[315005807,1708726271587,-664.3,0.00029999,2]
[315005808,1708726271596,-12903.52399587,0.00039063,30]
[315005809,1708726271607,-6476.96482542,0.00039063,30]
[315005810,1708726271616,-160.64979293,0.00039071,7]
[315005811,1708726271625,-375.39691227,0.00039072,30]
[315005812,1708726271731,-196.88,0.00027079,2]
[315005813,1708726271741,-500.0,0.00027397,2]
[315005814,1708726271751,-500.0,0.00027397,2]
[315005815,1708726271761,-500.0,0.00027397,2]
[315005816,1708726271770,-301.0,0.00027397,2]
[315005817,1708726271780,-500.0,0.00027397,2]
[315005818,1708726271789,-500.0,0.00027397,2]
[315005819,1708726271799,-664.3,0.00030136,2]
[315005820,1708726271808,-664.3,0.00030273,2]
[315005821,1708726271818,-664.3,0.0003041,2]
[315005822,1708726271827,-664.43,0.00030547,2]
[315005823,1708726271837,-84.71383474,0.00039072,30]
[315005824,1708726271846,-203.08430425,0.00039073,30]
[315005825,1708726271858,-257.02644276,0.00039073,30]
[315005826,1708726271868,-499.99763427,0.00039078,30]
[315005827,1708726271878,-190.51545935,0.00039081,30]
[315005828,1708726271888,-19451.37591648,0.00039084,30]
[315005829,1708726271897,-500.0,0.00039085,6]
[315005830,1708726271907,-500.0,0.00039085,6]
[315005831,1708726271916,-500.0,0.00039085,6]
[315005832,1708726271926,-500.0,0.00039085,6]
[315005833,1708726271935,-288.130618,0.00039087,30]
[315005834,1708726271944,-499.99763427,0.00039092,30]
[315005835,1708726271954,-288.130618,0.00039095,30]
[315005836,1708726271963,-500.0,0.00039099,4]
[315005837,1708726271972,-500.0,0.00039099,4]
[315005838,1708726271982,-500.0,0.00039099,4]
[315005839,1708726271993,-500.0,0.00039099,4]
[315005840,1708726272003,-500.0,0.00039099,4]
[315005841,1708726272012,-500.0,0.00039099,4]
[315005842,1708726272020,-500.0,0.00039099,4]
[315005843,1708726272030,-500.0,0.00039099,4]
[315005844,1708726272040,-500.0,0.00039099,4]
[315005845,1708726272049,-237.00946657,0.00039099,4]
[315005846,1708726272061,-262.99053343,0.00039099,4]
[315005847,1708726272071,-500.0,0.00039099,4]
[315005848,1708726272080,-500.0,0.00039099,4]
[315005849,1708726272090,-500.0,0.00039099,4]
[315005850,1708726272101,-200.0,0.000391,2]
[315005851,1708726272110,-200.0,0.000391,14]
[315005852,1708726272119,-1819.32821834,0.000391,38]
[315005853,1708726272131,-368.8020296,0.000391,38]
[315005854,1708726272142,-811.86975206,0.000391,38]
[315005855,1708726272152,-200.0,0.000391,2]
[315005856,1708726272161,-168.80539794,0.0003911,38]
[315005857,1708726705262,150.0,0.00022289,2]
[315005858,1708726705284,50.0,0.00022289,2]
[315005859,1708726762781,150.0,0.00022289,2]
[315005860,1708726762801,150.0,0.00022289,2]
[315005861,1708726762820,150.0,0.00022289,2]
[315005862,1708726762839,150.0,0.00022289,2]
[315005863,1708726762859,150.0,0.00022289,2]
[315005864,1708726762877,150.0,0.00022289,2]
[315005865,1708726762897,150.0,0.00022289,2]
[315005866,1708726762918,31.60491766,0.00022289,2]
[315005867,1708726776792,901.33743139,0.00022289,2]
[315005868,1708726796793,901.33743139,0.00022289,2]
[315005869,1708726814808,150.0,0.00022289,2]
[315005870,1708726814829,150.0,0.00022289,2]
[315005871,1708726814850,150.0,0.00022289,2]
[315005872,1708726814871,19.59680175,0.00022289,2]
[315005873,1708726820823,2151.7156,0.0002623,14]
[315005874,1708726832809,150.0,0.00022289,2]
[315005875,1708726832830,150.0,0.00022289,2]
[315005876,1708726832851,150.0,0.00022289,2]
[315005877,1708726832876,19.59680175,0.00022289,2]
[315005878,1708726848810,469.59680175,0.00022289,2]
[315005879,1708726865101,2777.84734783,0.000229,2]
[315005880,1708726865129,152.789999,0.000224,2]
[315005881,1708726879435,469.59680175,0.00022289,2]
[315005882,1708726899438,469.59680175,0.00022289,2]
[315005883,1708726919433,469.59680175,0.00022289,2]
[315005884,1708726939434,469.59680175,0.00022289,2]
[315005885,1708726951619,230.8,0.00016712,2]
[315005886,1708726955435,469.59680175,0.00022289,2]
[315005887,1708726981436,469.59680175,0.00022289,2]
[315005888,1708726999559,404.15632053,0.00022289,2]
[315005889,1708727003032,212.93,0.00020434,2]
[315005890,1708727165075,881.00770392,0.000229,2]
[315005902,1708727431833,-1212.43659335,0.00023561,2]
[315005903,1708727431843,-359.27642216,0.00023562,2]
[315005904,1708727431853,-150.0,0.00023562,2]
[315005905,1708727431862,-136.09055282,0.00023563,2]
[315005906,1708727431889,-346.04388915,0.00023563,2]
[315005907,1708727431899,-4171.05022636,0.00023565,2]
[315005908,1708727431908,-817.0,0.00023578,2]
[315005909,1708727431917,-150.0,0.0002411,2]
[315005910,1708727431927,-231.99,0.00024321,2]
[315005911,1708727431936,-197.27419245,0.00024367,2]
[315005912,1708727431950,-802.72580755,0.00024367,2]
[315005913,1708727431958,-2827.14,0.00024367,2]
[315005914,1708727431968,-150.0,0.00024433,2]
[315005915,1708727431977,-150.0,0.00024433,2]
[315005916,1708727431986,-23900.0,0.00024434,2]
[315005917,1708727431995,-692.89,0.00024461,2]
[315005918,1708727432005,-536.14,0.00024476,2]
[315005919,1708727432014,-3395.71,0.00024501,2]
[315005920,1708727432023,-200.0,0.00024515,2]
[315005921,1708727432032,-2577.37,0.00024538,2]
[315005922,1708727432042,-2705.0,0.00024562,2]
[315005923,1708727432051,-200.0,0.00024563,2]
[315005924,1708727432061,-154.30691755,0.0002463,2]
[315005925,1708727432071,-499.99,0.0002463,2]
[315005926,1708727432082,-150.0,0.00024658,2]
[315005927,1708727432091,-500.0,0.00024669,2]
[315005928,1708727432100,-581.65,0.0002473,2]
[315005929,1708727432109,-500.0,0.0002473,2]
[315005930,1708727432118,-400.0,0.0002481,2]
[315005931,1708727432127,-1991.36,0.00024858,2]
[315005932,1708727432137,-154.30691745,0.00024862,2]
[315005933,1708727432147,-400.0,0.00024878,2]
[315005934,1708727432158,-400.0,0.00024947,2]
[315005935,1708727432169,-400.0,0.00025015,2]
[315005936,1708727432179,-400.0,0.00025083,2]
[315005937,1708727432188,-150.0,0.00025088,2]
[315005938,1708727432198,-154.30691745,0.00025094,2]
[315005939,1708727432208,-2404.56,0.00025122,2]
[315005940,1708727432217,-400.0,0.00025151,2]
[315005941,1708727432226,-250.0,0.00025162,2]
[315005942,1708727432235,-174.05623017,0.00025206,2]
[315005943,1708727432244,-400.0,0.00025219,2]
[315005944,1708727432254,-298.93,0.00025247,3]
[315005945,1708727432265,-200.0,0.00025247,2]
[315005946,1708727432274,-150.99,0.00025247,2]
[315005947,1708727432283,-9201.41,0.00025274,2]
[315005948,1708727432292,-400.0,0.00025287,2]
[315005949,1708727432302,-1462.74,0.00025305,2]
[315005950,1708727432312,-154.30691745,0.00025326,2]
[315005951,1708727432322,-500.0,0.00025351,2]
[315005952,1708727432332,-400.0,0.00025355,2]
[315005953,1708727432342,-163.33,0.000254,2]
[315005954,1708727432351,-400.0,0.00025423,2]
[315005955,1708727432362,-400.0,0.00025491,2]
[315005956,1708727432373,-154.30691745,0.00025558,2]
[315005957,1708727432382,-400.0,0.00025559,2]
[315005958,1708727432391,-400.0,0.00025627,2]
[315005959,1708727432400,-11499.23,0.00025669,2]
[315005960,1708727432409,-400.0,0.00025695,2]
[315005961,1708727432419,-400.0,0.00025763,2]
[315005962,1708727432428,-5316.71,0.00025769,2]
[315005963,1708727432438,-154.30691745,0.00025789,2]
[315005964,1708727432451,-3950.33,0.00025797,2]
[315005965,1708727432460,-9994.49,0.00025817,2]
[315005966,1708727432469,-400.0,0.00025831,2]
[315005967,1708727432479,-817.0,0.00025841,2]
[315005968,1708727432488,-400.0,0.00025899,2]
[315005969,1708727432497,-400.0,0.00025967,2]
[315005970,1708727432507,-239.56719925,0.00025985,2]
[315005971,1708727432516,-154.30691745,0.00026021,2]
[315005972,1708727432528,-400.0,0.00026035,2]
[315005973,1708727432537,-239.56719924,0.00026069,2]
[315005974,1708727432546,-2000.0,0.00026086,2]
[315005975,1708727432555,-329.65765958,0.00026099,2]
[315005976,1708727432567,-400.0,0.00026103,2]
[315005977,1708727432576,-372474.0,0.00026125,2]
[315005978,1708727432771,-3395.71,0.00026145,2]
[315005979,1708727432781,-239.56719924,0.00026153,2]
[315005980,1708727432790,-154.30691745,0.00026253,2]
[315005981,1708727432800,-154.30691745,0.00026485,2]
[315005982,1708727432809,-3682.0334,0.00026567,2]
[315005983,1708727432818,-472.9088,0.00026616,2]
[315005984,1708727432827,-2500.0,0.00026616,2]
[315005985,1708727432836,-856.13982147,0.00026623,3]
[315005986,1708727432846,-19509.2992,0.00026667,2]
[315005987,1708727432857,-154.30691745,0.00026717,2]
[315005988,1708727432867,-210.0,0.00026877,2]
[315005989,1708727432876,-154.30691745,0.00026949,2]
[315005990,1708727432886,-155.89,0.00027022,2]
[315005991,1708727432896,-682.2882157,0.00027097,2]
[315005992,1708727432905,-215.11931397,0.00027097,2]
[315005993,1708727432916,-162.34,0.00027111,2]
[315005994,1708727432926,-300.0,0.00027131,2]
[315005995,1708727432935,-154.30691745,0.00027181,2]
[315005996,1708727432945,-234.06410996,0.00027187,2]
[315005997,1708727432955,-1189.835,0.00027197,2]
[315005998,1708727432964,-17951.5462,0.00027197,2]
[315005999,1708727432974,-487.4694,0.00027197,2]
[315006000,1708727432983,-10911.2124,0.00027197,2]
[315006001,1708727432994,-338398.12583658,0.00027197,2]
[315006002,1708727433182,-62440.30526342,0.00027197,2]
[315006003,1708727433192,-3760.95850385,0.00027197,2]
[315006004,1708727433203,-169.65932675,0.00027197,2]
[315006005,1708727433213,-3947.1088,0.00027297,2]
[315006006,1708727433223,-245000.0,0.00027297,2]
[315006007,1708727433233,-1000.0,0.00027297,2]
[315006008,1708727433243,-206.8619,0.00027297,2]